[Event "Portuguese Team Blitz-ch 2022"]
[Site "Viseu"]
[Date "2022.06.12"]
[Round "5.7"]
[White "Bartolo, Filipe Diogo Correia"]
[Black "Veleirinho, Tomas Carvalho"]
[Result "1-0"]
[ECO "A06"]
[WhiteElo "1811"]
[BlackElo "1649"]
[Annotator "NA RC COMBH"]
[PlyCount "65"]
[EventDate "2022.06.12"]
[EventType "team-tourn"]
[EventCountry "POR"]
[SourceTitle "playchess.com"]
[Source "ChessBase"]
[SourceQuality "1"]
[TimeControl "180+2"]

1. Nf3 {[%emt 0:00:01]} d5 2. g3 e6 {[%emt 0:00:03]} 3. Bg2 {[%emt 0:00:01]} Nf6 {[%emt 0:00:03]} 4. O-O {[%emt 0:00:05]} Be7 {[%emt 0:00:04]} 5. d3 {[%emt 0:00:01]} O-O {[%emt 0:00:02]} 6. Nbd2 {[%emt 0:00:03]} c5 {[%emt 0:00:03]} 7. e4 {[%emt 0:00:01]} b6 {[%emt 0:00:04]} 8. e5 {[%emt 0:00:13]} Nfd7 {[%emt 0:00:07]} 9. Re1 {[%emt 0:00:01]} Bb7 {[%emt 0:00:03]} 10. Nf1 {[%emt 0:00:05]} d4 {[%emt 0:00:07]} 11. g4 {[%emt 0:00:22]} Nc6 {[%emt 0:00:32]} 12. Bf4 {[%emt 0:00:01]} h6 {[%emt 0:00:21]} 13. Ng3 {[%emt 0:00:09]} Rb8 {[%emt 0:00:45]} 14. Qe2 {[%emt 0:00:20]} Qc7 {[%emt 0:00:04]} 15. h4 {[%emt 0:00:04]} Bc8 {[%emt 0:00:08]} 16. g5 {[%emt 0:00:03]} hxg5 {[%emt 0:00:21]} 17. Nxg5 {[%emt 0:00:01]} Bxg5 {[%emt 0:00:09]} 18. hxg5 {[%emt 0:00:02]} g6 {[%emt 0:00:22]} 19. Bf3 {[%emt 0:00:16]} Kg7 {[%emt 0:00:03]} 20. Kg2 {[%emt 0:00:01]} Rh8 {[%emt 0:00:02]} 21. Rh1 {[%emt 0:00:01]} Bb7 {[%emt 0:00:03]} 22. Rag1 {[%emt 0:00:44]} Ne7 {[%emt 0:00:02]} 23. Bxb7 {[%emt 0:00:33]} Qxb7+ {[%emt 0:00:02]} 24. Ne4 {[%emt 0:00:01]} Nf5 {[%emt 0:00:09]} 25. Kf1 {[%emt 0:00:01]} Rxh1 {[%emt 0:00:05]} 26. Rxh1 {[%emt 0:00:01]} Rh8 {[%emt 0:00:02]} 27. Rxh8 {[%emt 0:00:02]} Kxh8 {[%emt 0:00:01]} 28. Qf3 {[%emt 0:00:01]} Kg7 {[%emt 0:00:02]} 29. Qh3 {[%emt 0:00:07]} Qc8 {[%emt 0:00:03]} 30. Nf6 {[%emt 0:00:23]} Nxf6 31. exf6+ {[%emt 0:00:14]} Kg8 {[%emt 0:00:06]} 32. Qf3 {[%emt 0:00:01]} Qb8 {[%emt 0:00:04]} 33. Bxb8 {[%emt 0:00:01]} 1-0

[Event "Portuguese Team Blitz-ch 2022"]
[Site "Viseu"]
[Date "2022.06.12"]
[Round "5.8"]
[White "Albuquerque, Eduardo Ferreira"]
[Black "Gallo Garcia, Kemel Antonio"]
[Result "1-0"]
[ECO "D11"]
[WhiteElo "1828"]
[BlackElo "2332"]
[Annotator "TA"]
[PlyCount "65"]
[EventDate "2022.06.12"]
[EventType "team-tourn"]
[EventCountry "POR"]
[SourceTitle "playchess.com"]
[Source "ChessBase"]
[SourceQuality "1"]
[TimeControl "180+2"]

{[%evp 15,65,9,22,-13,19,10,9,0,2,-5,0,0,30,-45,-44,-35,-29,-170,-120,-124,-89,-129,-111,-245,-141,-204,-205,-260,-225,-364,0,0,0,0,112,115,169,167,272,41,238,141,138,49,48,50,51,12,126,21,66,73]} 1. d4 {[%emt 0:00:01]} d5 {[%emt 0:00:02]} 2. c4 {[%emt 0:00:01]} c6 {[%emt 0:00:02]} 3. Nf3 {[%emt 0:00:01]} Nf6 {[%emt 0:00:00]} 4. g3 {[%emt 0:00:01]} Bf5 {[%emt 0:00:10]} 5. Bg2 {[%emt 0:00:01]} e6 {[%emt 0:00:01]} 6. O-O Bd6 {[%emt 0:00:04]} 7. b3 {[%emt 0:00:09]} Nbd7 {[%emt 0:00:01]} 8. Bb2 {[%emt 0:00:01]} O-O {[%emt 0:00:02]} 9. e3 {[%emt 0:00:01] [#] D11: Slav Defence: 3 Nf3 sidelines and 3...Nf6 4 e3 Bg4.} Rc8 $146 {[%emt 0:00:08]} (9... b5 $5 {[%cal Rb5c4]}) ({Predecessor:} 9... b6 10. Nc3 h6 11. Qe2 Rc8 12. a3 c5 13. cxd5 exd5 14. dxc5 Nxc5 15. Nd4 Be4 16. b4 Bxg2 17. Kxg2 Nce4 18. Nxe4 dxe4 19. Nf5 Qc7 {½-½ (19) Schwarz,R (1496)-Zaytsev,A (1604) Playchess.com INT 2020}) 10. Nc3 {[%emt 0:00:05]} Re8 {[%emt 0:00:04]} 11. Nh4 {[%emt 0:00:05] The position is equal.} Bg4 {[%emt 0:00:15]} 12. Qc2 {[%emt 0:00:05]} e5 {[%emt 0:00:29]} 13. h3 Bh5 {[%emt 0:00:06]} 14. Rfe1 {[%emt 0:00:25]} (14. dxe5 $11 Bxe5 15. Rfe1) 14... e4 $1 $15 {[%emt 0:00:11]} 15. Nf5 {[%emt 0:00:09]} Bb8 {[%emt 0:00:10]} 16. g4 {[%emt 0:00:09] [#]} (16. Ba3 $1 $11 {and White has nothing to worry.}) 16... Bg6 {[%emt 0:00:02]} (16... Nxg4 $1 $19 {[%mdl 512] Hoping for ...Nh2.} 17. Nxe4 (17. hxg4 Bxg4 18. Ng3 h5 $17) (17. cxd5 $2 Nh2 $19) 17... Bh2+ 18. Kh1 dxe4 19. hxg4 Bxg4 20. Bxe4 Bc7) 17. Nh4 $17 {[%emt 0:00:46]} Qc7 {[%emt 0:00:04]} 18. Nxg6 {[%emt 0:00:08][%cal Og6e5] Black must now prevent Ne5!} (18. Kf1 h6 $11) 18... hxg6 {[%emt 0:00:03]} (18... fxg6 19. f4 $15) 19. Ne2 {[%emt 0:00:10]} (19. Kf1 $17) 19... Qh2+ $19 {[%emt 0:00:30]} 20. Kf1 {[%emt 0:00:00]} Nh7 $1 {[%emt 0:00:11]} 21. Ng1 {[%emt 0:00:23]} Ng5 {[%emt 0:00:08] ...Re6 is the strong threat.} 22. Rac1 {[%emt 0:00:06]} (22. Re2 {was necessary.}) 22... Nf3 $2 {[%emt 0:00:19]} ({Black should try} 22... Re6 $19 {[%cal Ob8g3] Threatens to win with ...Bg3!} 23. Qd1 (23. h4 $2 Qxh4 24. cxd5 Rf6 $19) 23... Rf6) 23. Nxf3 $11 {[%emt 0:00:21]} exf3 {[%emt 0:00:01]} 24. Bxf3 {[%emt 0:00:03]} Qxh3+ {[%emt 0:00:01] [#]} (24... Nf6 $1 $11) 25. Ke2 $1 $16 {[%emt 0:00:15]} Qh4 {[%emt 0:00:13]} (25... Qh2 $16 {keeps fighting.}) 26. Rh1 $36 {[%emt 0:00:05][%mdl 2048] White is on the roll.} Qf6 {[%emt 0:00:07]} (26... Qd8 {was called for.} 27. cxd5 c5) 27. Qd3 $2 {[%emt 0:00:09]} (27. cxd5 $18 {aiming for Rh3.} Bf4 28. dxc6) 27... Qg5 $2 {[%emt 0:00:12]} (27... Nc5 $1 $14 28. Qc2 Ne6) 28. Rcg1 {[%emt 0:00:05]} (28. cxd5 $18 cxd5 29. Qb5 Rxc1 30. Rxc1 (30. Bxc1 Nf6 $18)) 28... Nf6 $16 {[%emt 0:00:02]} 29. c5 {[%emt 0:00:12]} ({Better is} 29. Rh3 $16 {And now Rgh1 would win.} Bd6 30. Kf1 (30. Rgh1 Kf8 $16)) 29... Ne4 $14 {[%emt 0:00:02]} 30. Bxe4 {[%emt 0:00:02]} dxe4 {[%emt 0:00:03]} 31. Qc4 {[%emt 0:00:01]} Qf6 {[%emt 0:00:15] [#]} (31... b5 $11 {remains equal.} 32. Qc2 (32. cxb6 axb6 33. Rh3 b5 $11) 32... Bc7) 32. a3 {[%emt 0:00:02]} (32. Rh3 $1 $16) 32... Qf3+ {[%emt 0:00:04]} 33. Ke1 {[%emt 0:00:00] Weighted Error Value: White=0.57/Black=0.54} 1-0

[Event "Portuguese Team Blitz-ch 2022"]
[Site "Viseu"]
[Date "2022.06.12"]
[Round "6.1"]
[White "Padeiro, Jose"]
[Black "Veiga, Jose Francisco R P N"]
[Result "0-1"]
[ECO "A04"]
[WhiteElo "2207"]
[BlackElo "2377"]
[Annotator "TA"]
[PlyCount "124"]
[EventDate "2022.06.12"]
[EventType "team-tourn"]
[EventCountry "POR"]
[SourceTitle "playchess.com"]
[Source "ChessBase"]
[SourceQuality "1"]
[TimeControl "180+2"]

{[%evp 19,124,26,33,0,1,6,37,29,41,40,28,17,77,68,81,-38,-53,-49,-57,-352,-330,-439,-422,-423,-417,-323,-281,-424,-393,-436,-284,-275,32,33,145,34,277,0,0,0,0,0,0,0,0,0,0,0,0,0,0,0,0,0,0,0,0,0,0,0,0,0,0,0,0,0,0,0,0,0,0,0,0,0,0,0,0,0,0,0,0,0,0,0,0,0,0,0,0,0,0,0,0,0,0,0,0,-27999,-27999,-27999,-27999,-27999,-27999,-27999,-27999,-27999,-27999]} 1. Nf3 g6 2. d4 Bg7 3. c4 Nf6 4. Nc3 O-O 5. Bg5 d6 6. e3 c6 7. Be2 Nbd7 8. O-O e5 9. dxe5 dxe5 10. Qc2 Qc7 11. b4 {E61: King's Indian: Early deviations for White, including Smyslov System.} a5 12. a3 Re8 13. Nd2 {White is slightly better.} Nf8 {[#]} 14. c5 $146 ({Predecessor:} 14. Bxf6 Bxf6 15. c5 axb4 16. axb4 Bf5 17. Nce4 Be7 18. Nc4 Nd7 19. Bd3 Bxe4 20. Bxe4 {0-1 (75) Mueller,C (2098)-Klek,H (2160) Bayern 2011}) 14... Bf5 15. Qb3 Ne6 (15... Be6 $11 16. Nc4 N8d7) 16. Bxf6 $16 Bxf6 17. g4 {[#]} (17. Nde4 $16 Be7 18. Ng3) 17... Nd4 $1 $15 18. exd4 exd4 19. gxf5 $4 {[%mdl 8192]} (19. Nb5 $1 $15 cxb5 20. Bxb5 Bxg4 21. Bxe8 Rxe8 22. Qg3) 19... dxc3 $19 20. fxg6 hxg6 (20... cxd2 $2 21. gxf7+ Kh8 22. fxe8=N $18) 21. Bc4 cxd2 22. Rad1 Red8 {aiming for ...Rd4.} 23. Qf3 (23. Qg3 {was forced.} Qxg3+ 24. fxg3) 23... Qe5 {And now ...axb4 would win.} 24. Qg3 Qxg3+ 25. fxg3 axb4 $2 26. Rxf6 $14 bxa3 {[#]} (26... Rd4 $1 $14 27. Bb3 (27. Bxf7+ Kg7 $11) 27... Rxa3) 27. Rxf7 (27. Ba2 $1 $16) 27... Rd4 $2 {[#]} ({Better is} 27... Kh8 $14) 28. Rf4+ $2 ({White has to play} 28. Ba2 $1 $18 Kh8 29. Kf2) 28... Rxc4 $1 $11 29. Rxc4 a2 30. Ra1 d1=Q+ (30... Rd8 $5 31. Rd1 Ra8 $11) 31. Rxd1 a1=Q 32. Rxa1 Rxa1+ {[%mdl 4096] Endgame KR-KR} 33. Kg2 Ra2+ 34. Kh3 Rb2 35. Rd4 Kg7 36. Kg4 Rxh2 37. Rd7+ Kf6 38. Rd6+ Kf7 39. Rd7+ Kf6 40. Rd6+ Kg7 41. Rd7+ Kh6 42. Rxb7 Rc2 43. Rb8 Rxc5 44. Rh8+ Kg7 45. Rc8 Kf6 46. Rf8+ Kg7 47. Rc8 Rc4+ 48. Kg5 Rc5+ 49. Kg4 Kf6 50. Rf8+ Ke7 51. Rg8 Kf7 52. Rc8 Rc3 53. Kf4 c5 54. g4 c4 55. g5 Rc1 56. Rc7+ Ke6 57. Rc6+ Kd5 58. Rxg6 {[%mdl 8192]} (58. Rc8 $11) 58... c3 {Black mates.} 59. Rg8 c2 60. Rd8+ Ke6 61. Ke3 Re1+ 62. Kd2 c1=Q+ {Both players deserved the win here.  Weighted Error Value: White=0.41/Black=0.28 (precise)} 0-1

[Event "Portuguese Team Blitz-ch 2022"]
[Site "Viseu"]
[Date "2022.06.12"]
[Round "6.2"]
[White "Martins, Bruno Andre Leite"]
[Black "Monteiro, Paulo Alexandre G"]
[Result "1-0"]
[ECO "A45"]
[WhiteElo "2327"]
[BlackElo "1983"]
[Annotator "TA"]
[PlyCount "133"]
[EventDate "2022.06.12"]
[EventType "team-tourn"]
[EventCountry "POR"]
[SourceTitle "playchess.com"]
[Source "ChessBase"]
[SourceQuality "1"]
[TimeControl "180+2"]

{[%evp 9,133,0,10,-4,0,3,0,-10,0,0,17,22,20,14,54,37,47,30,62,56,60,60,56,37,65,0,60,-36,0,0,68,60,83,83,140,149,162,150,189,191,265,178,339,312,308,300,743,583,521,0,287,110,110,71,60,63,61,53,83,0,59,0,20,0,0,-47,-47,-128,-122,-127,-125,-133,-97,-367,0,0,0,0,0,-8,0,-82,-81,-85,-29,-134,-55,-275,-264,-390,-302,-349,802,840,825,789,695,597,1736,1694,1680,1615,1489,1303,2066,1974,1893,-4627,29977,29977,29980,29981,29981,29982,29982,29983,29983,29984,29984,29985,29985,29984,29983,29983,29986,352]} 1. d4 Nf6 2. Bf4 g6 3. Nc3 d5 4. e3 Bg7 5. h4 h5 6. Be2 {A45: Trompowsky Attack.} c6 7. Nf3 Nbd7 8. Ne5 {The position is equal.} Nxe5 9. Bxe5 Bf5 10. f3 b5 11. Qd2 {[#]} Qa5 $146 ({Predecessor:} 11... Qc8 12. O-O-O a5 13. Rdg1 Rh7 14. Re1 Qb7 15. Bf1 Bh6 16. Bf4 Bxf4 17. exf4 a4 {0-1 (92) Maurizzi,M (2141)-Razafindratsima,T (1978) Riga 2018}) 12. a3 Kf8 13. O-O Nd7 14. Bxg7+ Kxg7 15. e4 {[%cal Be3e4,Be4e5][%mdl 32]} Be6 16. Qe3 Qb6 17. b4 (17. exd5 $14 Bxd5 18. Bxb5 $1) 17... a5 (17... dxe4 $11 18. Nxe4 a5) 18. Rfb1 (18. exd5 $1 $14 Bxd5 19. Bxb5 $1) 18... axb4 19. axb4 Nf6 (19... dxe4 $11 20. Nxe4 Bf5) 20. e5 $1 $14 Nd7 21. Bd3 Qb7 (21... Ra7 $142) 22. Ne2 $16 Rxa1 23. Rxa1 Ra8 24. Rf1 Ra4 (24... Qa7 $142 25. c3 Qa2) 25. c3 Ra2 $2 (25... Qa7 {might work better.} 26. f4 Ra1) 26. Qg5 {Hoping for Nf4.} Nf8 27. Nf4 Kh8 $2 (27... Qd7 28. Nxh5+ Kg8) 28. Qh6+ Kg8 {[#]} 29. Qg5 $2 (29. Nxh5 $1 $18 {[%mdl 512]} gxh5 30. Qg5+ Ng6 31. Bxg6 fxg6 32. Qxg6+ Kf8 33. Qxe6) 29... Qd7 $2 {[%mdl 8192]} (29... Kh8 $1 $11 {and Black has nothing to worry.}) 30. Nxh5 $2 (30. g4 $18 {has better winning chances.}) 30... Bf5 31. Bxf5 {White is more active.} Qxf5 32. Qxf5 gxf5 {[%mdl 4096] Endgame KRN-KRN} 33. Rf2 Ra1+ 34. Rf1 Ra2 35. Rc1 ({White should play} 35. Kh2 $14) 35... Ne6 36. Kf1 f4 37. Kg1 (37. g3 $11) 37... Kh7 $1 $15 38. g3 (38. Kh1 $15) 38... fxg3 $17 39. Nxg3 Nf4 $1 {aiming for ...Rg2+.} 40. Kf1 Kg6 {[%mdl 1024] Prevents Nf5. And now ...Rg2 would win. Black has strong compensation.} 41. Nh1 $2 {[%mdl 8192]} (41. Re1 $17) 41... Nd3 $2 (41... Ne2 42. Re1 Nf4 43. Ng3 $17) (41... Kh5 $19 42. Ng3+ Kxh4 43. Nf5+ Kh3) 42. Rd1 $11 Nb2 43. Rd2 Ra1+ 44. Kg2 Nc4 45. Re2 (45. Rd3 $1 $11) 45... Rc1 46. Ng3 Rxc3 ({Better is} 46... e6 $17 47. Kf2 (47. h5+ Kg7 $17) 47... Rxc3) 47. f4 {[#]} (47. h5+ $11 {keeps the balance.} Kg5 48. f4+ Kg4 49. h6) 47... e6 (47... Ne3+ $1 $17 48. Kf2 Ng4+ 49. Kg2 e6) 48. Kh3 $2 {[#]} ({White has to play} 48. f5+ $1 $15 Kh6 49. fxe6 fxe6 50. Ra2) 48... Ne3 $1 $19 {Strongly threatening ...Nf5.} 49. h5+ (49. Kh2 $142) 49... Kg7 {White must now prevent ...Nf5.} 50. Kh4 Nf5+ $4 {[%mdl 8192]} ({And not} 50... Nc2 51. Rd2 $17 (51. Rg2 $2 Kh6 $19)) (50... Kh6 $19 51. Rd2 Rc2) 51. Nxf5+ $18 exf5 {KR-KR} 52. Kg5 {Threatens to win with h6+.} Rh3 53. Rg2 Kf8 54. Rc2 Ke8 55. Rxc6 Ke7 56. Rc5 Rb3 57. Rxd5 Rxb4 58. Rxb5 $4 {[%mdl 8192]} Rxd4 $4 {[%mdl 8192]} (58... Rxb5 $19 59. Kxf5 Rb8) 59. Kxf5 {White mates.} Rd1 60. Rb7+ Ke8 61. Kf6 Rh1 62. Re7+ Kd8 63. Rxf7 Rxh5 64. f5 Ke8 65. Rg7 Rh6+ 66. Rg6 Rh7 67. Rg8+ {A wild game.  Weighted Error Value: White=0.74/Black=0.55} 1-0

[Event "Portuguese Team Blitz-ch 2022"]
[Site "Viseu"]
[Date "2022.06.12"]
[Round "6.3"]
[White "Paiva, Manuel Maria Fonseca"]
[Black "Rego, Pedro Filipe"]
[Result "0-1"]
[ECO "B24"]
[WhiteElo "1453"]
[BlackElo "2251"]
[Annotator "TA"]
[PlyCount "43"]
[EventDate "2022.06.12"]
[EventType "team-tourn"]
[EventCountry "POR"]
[SourceTitle "playchess.com"]
[Source "ChessBase"]
[SourceQuality "1"]
[TimeControl "180+2"]

{[%evp 12,43,30,14,31,31,32,14,15,15,19,11,12,0,10,-3,0,0,61,-14,0,-1,30,-38,29,-186,-156,-328,-344,-323,-328,-431,510,-84]} 1. e4 {[%emt 0:00:04]} c5 {[%emt 0:00:02]} 2. Nc3 {[%emt 0:00:01]} Nc6 {[%emt 0:00:01]} 3. Bb5 {[%emt 0:00:00]} Nd4 {[%emt 0:00:04]} 4. Nf3 {[%emt 0:00:01]} g6 {[%emt 0:00:05]} 5. Nxd4 {[%emt 0:00:06]} cxd4 {[%emt 0:00:01]} 6. Ne2 {[%emt 0:00:01]} Bg7 {[%emt 0:00:00]} 7. O-O {[%emt 0:00:02]} e6 {[%emt 0:00:04] B31: Sicilian: 2...Nc6 3 Bb5 g6.} 8. c3 {[%emt 0:00:01] 8.c3 is better than 8.d3.} dxc3 {[%emt 0:00:05]} 9. Nxc3 {[%emt 0:00:01]} a6 {[%emt 0:00:08] The position is equal.} 10. Ba4 {[%emt 0:00:04]} Ne7 {[%emt 0:00:07]} 11. d4 {[%emt 0:00:07] [#]} O-O $146 {[%emt 0:00:06]} ({Predecessor:} 11... b5 12. Bb3 d5 13. exd5 Nxd5 14. Nxd5 exd5 15. a4 Be6 16. Bd2 Bxd4 17. axb5 Bxb2 {1-0 (39) Aabling Thomsen,J (2241)-Soraas,T (2155) Copenhagen 2007}) 12. d5 {[%emt 0:00:21]} exd5 {[%emt 0:00:12]} 13. exd5 {[%emt 0:00:07]} d6 {[%emt 0:00:03]} 14. Re1 {[%emt 0:00:10]} Bd7 {[%emt 0:00:09]} (14... Nf5 $11) 15. Bb3 {[%emt 0:00:16]} (15. Bg5 $14 Bxc3 16. bxc3 (16. Bxe7 Re8 $14)) 15... Nf5 $11 {[%emt 0:00:18]} 16. Bf4 {[%emt 0:00:21]} Re8 {[%emt 0:00:12]} 17. Qd3 {[%emt 0:00:32]} ({White should try} 17. Rxe8+ $11 Bxe8 18. Qd2) 17... b5 {[%emt 0:00:16]} ({Better is} 17... Qb6 $15) 18. g4 $2 {[%emt 0:00:22] [#]} (18. Rxe8+ $11 Qxe8 19. Qd2) 18... Qh4 $19 {[%emt 0:00:13]} 19. Bg3 $2 {[%emt 0:00:49]} (19. h3 $17) 19... Qxg4 {[%emt 0:00:09]} 20. Re4 {[%emt 0:00:08]} Rxe4 {[%emt 0:00:12]} 21. Nxe4 {[%emt 0:00:01]} h5 $4 {[%emt 0:00:44][%mdl 8192] [#]} (21... Re8 $19 {and life is good for Black.} 22. f3 Qh3) 22. f3 $2 {[%emt 0:00:00] Weighted Error Value: White=0.57/Black=0.58} ({White has to play} 22. Bd1 $1 $18 {[%cal Rd1g4]}) 0-1

[Event "Portuguese Team Blitz-ch 2022"]
[Site "Viseu"]
[Date "2022.06.12"]
[Round "6.4"]
[White "Silva, Miguel Antonio Neto"]
[Black "Neto, Dinis Fonseca"]
[Result "1-0"]
[ECO "B50"]
[WhiteElo "2215"]
[BlackElo "1202"]
[Annotator "TA"]
[PlyCount "59"]
[EventDate "2022.06.12"]
[EventType "team-tourn"]
[EventCountry "POR"]
[SourceTitle "playchess.com"]
[Source "ChessBase"]
[SourceQuality "1"]
[TimeControl "180+2"]

{[%evp 9,58,0,0,0,6,-4,34,30,39,32,34,11,57,-2,47,35,45,32,79,89,156,109,115,102,160,91,339,220,227,209,385,390,770,745,751,754,720,667,1303,1200,29983,650,595,557,580,566,598,596,29998,29999,29999]} 1. e4 c5 2. Nf3 d6 3. c3 Nf6 4. Qe2 g6 5. g3 Bg7 6. Bg2 {B50: Sicilian: 2...d6, Miscellaneous.} O-O 7. O-O Bd7 8. d4 {White is slightly better.} cxd4 9. cxd4 Nc6 10. Nc3 {[#]} Rc8 $146 (10... Bg4 $11) ({Predecessor:} 10... Re8 11. a3 Rc8 12. b4 Qb6 13. Be3 Nd8 14. d5 Qc7 15. Rac1 Qb8 16. Nd2 e6 {0-1 (67) Warnecke,C-Fazio,F Lingen 1995}) 11. e5 ({White should try} 11. Rd1 $14) 11... dxe5 (11... Ng4 $11) 12. dxe5 $14 Ng4 {[%cal Rg4e5]} 13. Bf4 $1 {[#] aiming for Rad1.} Qa5 (13... h6 $14) 14. Rfe1 $16 f6 (14... h6 $142) 15. e6 (15. Rad1 $142 Bf5 16. exf6 Nxf6 17. h3) 15... Be8 16. Rad1 $36 {[%cal Od1d7][%mdl 2048] White has strong initiative.} g5 {[#]} (16... f5 $142) 17. Bd2 {White is more active.} (17. Bc1 $142 $1) 17... Qc7 $2 {Black cannot hold the game after this.} (17... Bh5 $16 {might work better.}) 18. h3 Nge5 19. Nd5 Qb8 (19... Qd6) 20. Nxe5 $18 Nxe5 (20... Qxe5 21. Qxe5 fxe5 22. Bxg5 Bf6) 21. Nxe7+ Kh8 22. Nxc8 Qxc8 23. Bc3 Ng6 24. e7 Rf7 25. Bd5 (25. Rd8 $142 Rxe7 26. Qxe7 Nxe7 27. Rxc8 Bf8 28. Bxf6+ Kg8 29. Rxe8 Kf7 30. Rxf8+ Kxf8 31. Rxe7) 25... Rxe7 26. Qg4 Rxe1+ 27. Rxe1 Bd7 28. Be6 h5 29. Qxh5+ Bh6 30. Qxh6# {Weighted Error Value: White=0.55/Black=1.21} 1-0

[Event "Portuguese Team Blitz-ch 2022"]
[Site "Viseu"]
[Date "2022.06.12"]
[Round "6.5"]
[White "Fernandez Lopez, Ruben"]
[Black "Santos, Jose Guilherme B Lim"]
[Result "1/2-1/2"]
[ECO "B99"]
[WhiteElo "2324"]
[BlackElo "2365"]
[Annotator "TA"]
[PlyCount "95"]
[EventDate "2022.06.12"]
[EventType "team-tourn"]
[EventCountry "POR"]
[SourceTitle "playchess.com"]
[Source "ChessBase"]
[SourceQuality "1"]
[TimeControl "180+2"]

{[%evp 18,95,36,15,66,62,61,33,52,0,0,-23,0,0,0,0,0,0,0,0,27,22,98,26,52,36,63,39,146,-54,139,0,115,0,0,-131,46,24,23,0,0,-126,-127,-96,-72,-167,-149,-1252,-1183,-1190,-1147,-29978,-29979,-29977,-29967,-29984,-29985,-29992,-29990,-29990,-29986,-29986,-29987,-29987,-29988,-29988,-29989,-29989,-29988,-29991,-29991,-29992,-4885,-29988,0,0,0,0,0,0]} 1. e4 c5 2. Nf3 d6 3. d4 cxd4 4. Nxd4 Nf6 5. Nc3 a6 6. Bg5 e6 7. f4 Be7 {[%cal Bf8e7,Be7f6,Bf6e5][%mdl 32]} 8. Qf3 Qc7 9. O-O-O Nbd7 10. g4 h6 {B99: Sicilian Najdorf: 6 Bg5 e6 7 f4 Be7 8 Qf3 Qc7 9 0-0-0 Nbd7.} (10... b5 $11) 11. Bxf6 $14 Bxf6 12. Kb1 g5 {White is slightly better.} 13. f5 (13. e5 $14 dxe5 14. fxe5 Qxe5 15. Bg2) 13... Ne5 $11 {[#]} 14. Qe2 $146 ({Predecessor:} 14. Qh3 h5 15. gxh5 g4 16. Qg2 Rxh5 17. fxe6 Bxe6 18. Be2 Rg5 19. Rhf1 Rg6 20. h3 {1-0 (41) Herejk,P (2173)-Soural,J (2169) Czech Republic 2002}) 14... Nc6 15. Nxc6 bxc6 16. Qf3 Be5 17. Bc4 Rb8 18. h4 Qe7 (18... h5 $5 {[%cal Rh5g4]} 19. Bb3 (19. fxe6 fxe6 20. Bb3 Qf7 $11) 19... hxg4 20. Qxg4 gxh4 $11) 19. hxg5 Qxg5 (19... hxg5 $11 {remains equal.} 20. Rxh8+ Bxh8) 20. Rh5 (20. Rdf1 $16) 20... Qg7 {White must now prevent ...Bxc3.} 21. Bb3 a5 22. Na4 Rb4 (22... c5 $14) 23. f6 $2 ({Better is} 23. a3 $16 Rb8 24. f6 Qxf6 25. Qxf6 Bxf6 26. Rxd6) 23... Qg6 $2 {[#]} (23... Qxf6 $15 24. Qxf6 Bxf6) 24. Nc3 ({White has to play} 24. Rxe5 $1 $16 {[%mdl 512]} dxe5 25. Nc5) 24... Bd7 (24... Bxf6 25. Rxd6 Bxc3 26. bxc3 (26. Qxc3 O-O $16) 26... Rxe4 27. Rd4 (27. Rxc6 $2 Bb7 $19) (27. Rxa5 O-O $11) 27... Rxd4 28. cxd4 $16) (24... Qxf6 $11 25. Qxf6 Bxf6) 25. Rxe5 {White is much more active.} dxe5 26. Na4 ({Wrong is} 26. Qd3 $2 Rd4 27. Qa6 Rxd1+ 28. Nxd1 Qxf6 $19) (26. Qf2 $11 {keeps the balance.}) 26... c5 $2 ({Black should play} 26... Qxe4 $17 27. Qc3 Qxg4) 27. Nxc5 $14 Bc6 28. Rd6 Bxe4 29. Qc3 {[#]} (29. Nxe6 $1 $11 {was the only way to keep the balance.} fxe6 30. Rxe6+ Kd8 31. Qc3) 29... O-O $1 $17 {[%cal Bh8f8,Bf8c8,Bc8c5][%mdl 32]} (29... Qxf6 $2 30. a3 O-O 31. axb4 $18) 30. a3 Rbb8 31. Nd7 (31. Qd2 $17) 31... Rfc8 $19 ({Weaker is} 31... Qxg4 32. Nxf8 Rxf8 33. Qxe5 $11) 32. Nc5 $2 {[%mdl 8192] [#]} (32. Nxb8 $17 Rxc3 33. Rd8+ Kh7 34. Nd7 Bxc2+ 35. Ka1) 32... Rxb3 $1 {[%mdl 512]} 33. Qxb3 Rxc5 34. Qb8+ Kh7 35. Qf8 Bxc2+ 36. Ka1 Qxf6 37. Ka2 a4 38. Rd1 Bb3+ 39. Ka1 Bxd1 40. Qxc5 Bb3 41. Qc1 Qf4 {[%cal Rf4c1]} 42. Qb1+ Kg7 43. g5 Qxg5 44. Qf1 Qf5 (44... e4 $142 45. Qe1 e3 46. Qf1 e2 47. Qe1 e5 48. Qh1 Qg3 49. Qe4 Qg1+ 50. Qb1 Qxb1+ 51. Kxb1 e1=Q#) 45. Qg2+ {[#]} Kf6 $2 (45... Qg6 $1 {mates} 46. Qf1 Qg4 47. Qe1 f5 48. Qf1 e4 49. Qe1 e3 50. Qc3+ Kg6 51. Qe1 e2 52. Qf2 h5 53. Qe3 Qg2 54. Qc1 Qf1 55. Qb1 Qxb1+ 56. Kxb1 e1=Q#) 46. Qg7+ $1 $11 {The position is equal.} Ke7 {[%cal Rf5f1]} 47. Qf8+ $1 Kd7 {[%cal Rf5f1]} 48. Qd6+ {[%mdl 64] Decoy.  Weighted Error Value: White=0.72/Black=0.41} 1/2-1/2